bitfinex/quotes_SOLUSD_20251030
["timestamp","ask_amount","ask_price","bid_price","bid_amount"]
[1761855125387,20.592,180.7,180.61,0.7]
[1761855125783,26.12631128,180.7,180.62,5.53648543]
[1761855126294,0.68,180.76,180.63,0.7]
[1761855126495,20.592,180.75,180.63,0.7]
[1761855126977,0.68,180.74,180.63,0.7]
[1761855127174,5.53250345,180.75,180.63,0.7]
[1761855127381,26.12450345,180.75,180.63,0.7]
[1761855127786,5.53311569,180.73,180.64,5.53587245]
[1761855127979,19.36590493,180.73,180.64,5.53587245]
[1761855128180,20.04590493,180.73,180.64,5.53587245]
[1761855128475,20.04590493,180.73,180.65,0.7]
[1761855128886,6.21311569,180.73,180.65,0.7]
[1761855129898,6.21311569,180.73,180.65,6.23549185]
[1761855130276,6.21311569,180.73,180.65,0.7]
[1761855130277,20.04590493,180.73,180.65,0.7]
[1761855130480,20.592,180.7,180.61,0.7]
[1761855131009,0.7,180.69,180.57,0.7]
[1761855131195,20.592,180.65,180.57,0.7]
[1761855131518,20.592,180.65,180.57,14.54121359]
[1761855131679,20.592,180.65,180.58,0.7]
[1761855131883,21.292,180.65,180.58,0.7]
[1761855132080,20.07555358,180.64,180.56,0.2]
[1761855132373,26.12787245,180.64,180.57,0.7]
[1761855133198,39.96755358,180.64,180.57,0.7]
[1761855133634,20.592,180.61,180.56,0.2]
[1761855134007,21.292,180.61,180.56,0.2]
[1761855134310,5.53709856,180.6,180.56,0.2]
[1761855134517,26.82837391,180.63,180.56,0.2]
[1761855135011,40.66882123,180.63,180.56,0.2]
[1761855135211,26.82837391,180.63,180.56,0.2]
[1761855135411,40.66882123,180.63,180.56,0.2]
[1761855135823,0.72,180.62,180.56,0.2]
[1761855136305,5.53679198,180.61,180.56,0.2]
[1761855136502,20.592,180.64,180.57,0.68]
[1761855136740,20.592,180.62,180.56,0.2]
[1761855136944,20.592,180.62,180.56,0.88]
[1761855137303,20.592,180.62,180.56,6.41830698]
[1761855137611,20.592,180.62,180.56,0.88]
[1761855138412,5.53679198,180.61,180.56,0.88]
[1761855138929,6.25642018,180.63,180.56,6.41821215]
[1761855139104,26.84842018,180.63,180.56,6.41821215]
[1761855139429,26.12842018,180.63,180.56,5.73821215]
[1761855139622,5.53587681,180.64,180.57,0.68]
[1761855140324,13.83968113,180.64,180.57,0.68]
[1761855140800,5.53556601,180.65,180.57,6.21784963]
[1761855141206,5.53556601,180.65,180.58,0.68]
[1761855141615,19.37448103,180.65,180.58,0.68]
[1761855141818,0.72,180.71,180.58,0.68]
[1761855142234,0.72,180.71,180.58,6.21784963]
[1761855142426,20.592,180.67,180.58,6.21784963]
[1761855142635,20.592,180.67,180.58,0.68]
[1761855142829,0.72,180.66,180.58,0.68]
[1761855143009,0.72,180.66,180.58,6.21755029]
[1761855143544,0.72,180.66,180.59,0.68]
[1761855143844,19.36912008,180.7,180.59,0.68]
[1761855144033,5.53342186,180.72,180.59,0.68]
[1761855144230,5.53342186,180.72,180.6,9.78882769]
[1761855144569,19.36697653,180.72,180.61,19.37877193]
[1761855144704,39.95897653,180.72,180.61,20.05877193]
[1761855144907,40.67897653,180.72,180.62,0.65753414]
[1761855145130,20.592,180.69,180.62,0.65753414]
[1761855145847,0.72,180.68,180.57,16.6421657]
[1761855146050,0.72,180.68,180.56,0.2]
[1761855146238,20.592,180.67,180.56,0.2]
[1761855146433,5.5352596,180.66,180.56,5.73820068]
[1761855146640,20.592,180.67,180.56,19.5840137]
[1761855146831,20.592,180.67,180.57,9.78882769]
[1761855147027,20.592,180.67,180.59,9.78882769]
[1761855147454,20.592,180.67,180.6,0.68]
[1761855148324,21.312,180.71,180.6,0.68]
[1761855148528,26.84585904,180.71,180.61,5.53679198]
[1761855148929,26.84585904,180.71,180.62,0.68]
[1761855149660,26.12585904,180.71,180.62,0.68]
[1761855149864,20.592,180.69,180.62,0.68]
[1761855150857,32.29125921,180.76,180.63,19.37662624]
[1761855150858,4.62984871,180.76,180.63,19.37662624]
[1761855151162,5.53189135,180.77,180.64,9.78882769]
[1761855151468,20.592,180.73,180.64,10.46882769]
[1761855151763,20.592,180.73,180.65,0.68]
[1761855152129,21.312,180.73,180.65,0.68]
[1761855152346,0.72,180.72,180.65,0.68]
[1761855152546,0.72,180.72,180.65,62.38]
[1761855153055,6.25349744,180.72,180.65,62.38]
[1761855153266,20.592,180.73,180.66,0.68]
[1761855153435,26.12518149,180.73,180.66,0.68]
[1761855153955,26.84518149,180.73,180.66,0.68]
[1761855154377,40.67797073,180.73,180.66,0.68]
[1761855154541,0.72,180.72,180.65,67.23549675]
[1761855154938,5.53372807,180.71,180.65,67.23549675]
[1761855155161,19.36804825,180.71,180.65,61.7]
[1761855155343,0.72,180.7,180.61,0.68]
[1761855155542,20.592,180.68,180.61,0.68]
[1761855155766,0.72,180.67,180.59,6.21736154]
[1761855155976,0.72,180.67,180.56,0.88]
[1761855155977,21.312,180.67,180.56,0.88]
[1761855156180,20.592,180.63,180.56,0.88]
[1761855156670,20.592,180.63,180.56,6.41831572]
[1761855156841,20.592,180.63,180.56,0.88]
[1761855157046,20.09769902,180.62,180.56,0.2]
[1761855157746,20.592,180.59,180.56,0.2]
[1761855158143,21.312,180.59,180.56,0.2]
[1761855159172,26.84971181,180.58,180.56,0.2]
[1761855159366,6.25771181,180.58,180.56,0.2]
[1761855159591,21.312,180.57,180.56,0.2]
[1761855159959,31.10082769,180.57,180.56,1e-08]
[1761855160172,20.592,180.57,180.56,1e-08]
[1761855161777,26.12961602,180.59,180.56,1e-08]
[1761855162690,20.592,180.59,180.56,1e-08]
[1761855163447,20.592,180.59,180.56,0.71000001]
[1761855163788,26.12952069,180.59,180.56,1e-08]
[1761855163969,20.592,180.59,180.56,1e-08]
[1761855164279,20.592,180.59,180.56,0.71000001]
[1761855164475,26.12952774,180.59,180.56,0.71000001]
[1761855164651,9.78882769,180.64,180.56,0.71000001]
[1761855164652,4.62984871,180.64,180.56,0.71000001]
[1761855164860,5.53556601,180.65,180.56,0.71000001]
[1761855165054,20.592,180.63,180.57,5.53801849]
[1761855165448,5.34984871,180.67,180.58,0.71]
[1761855165449,20.592,180.64,180.58,0.71]
[1761855165764,6.25504056,180.67,180.58,0.71]
[1761855166074,5.53504056,180.67,180.58,0.71]
[1761855166276,20.592,180.64,180.58,0.71]
[1761855166577,10.50882769,180.66,180.56,1e-08]
[1761855166879,20.592,180.63,180.56,0.71000001]
[1761855167098,5.53648543,180.62,180.56,6.24827327]
[1761855167562,5.53648543,180.62,180.57,0.71]
[1761855167755,20.592,180.62,180.57,0.71]
[1761855168084,5.53556601,180.65,180.57,0.71]
[1761855168085,20.592,180.64,180.57,0.71]
[1761855169073,0.72,180.68,180.57,0.71]
[1761855169074,5.53565959,180.65,180.58,5.53771181]
[1761855169264,26.1273182,180.66,180.58,19.38199135]
[1761855169463,5.53469877,180.68,180.59,0.71]
[1761855169783,20.592,180.67,180.59,0.71]
[1761855170259,15.1386764,180.72,180.59,0.71]
[1761855170659,20.592,180.68,180.59,0.71]
[1761855171098,20.592,180.66,180.6,5.53709856]
[1761855171581,20.592,180.68,180.61,0.71]
[1761855172909,20.592,180.68,180.62,5.53648543]
[1761855173405,20.592,180.69,180.62,6.24648543]
[1761855174884,5.53464688,180.68,180.62,0.71]
[1761855175502,39.96239321,180.69,180.62,0.71]
[1761855175897,40.68239321,180.69,180.62,0.71]
[1761855177110,0.72,180.68,180.58,0.71]
[1761855177405,0.72,180.68,180.59,0.71]
[1761855177789,44.59224192,180.69,180.59,0.71]
[1761855178008,39.96239321,180.69,180.59,0.71]
[1761855178198,40.68239321,180.69,180.59,0.71]
[1761855179085,40.68239321,180.69,180.6,5.53709856]
[1761855179289,45.31224192,180.69,180.6,5.53709856]
[1761855179490,45.31224192,180.69,180.61,0.71]
[1761855179708,40.68239321,180.69,180.61,0.71]
[1761855180393,26.84654176,180.69,180.61,6.24677939]
[1761855180782,26.84654176,180.69,180.62,0.71]
[1761855181099,26.12654176,180.69,180.62,0.71]
[1761855181606,39.96239321,180.69,180.62,0.71]
[1761855181812,39.96239321,180.69,180.62,6.24638827]
[1761855181993,39.96239321,180.69,180.59,13.84504624]
[1761855181994,0.72,180.68,180.59,14.55504624]
[1761855182186,20.592,180.64,180.56,0.71000001]
[1761855182510,20.592,180.6,180.56,1e-08]
[1761855182701,0.72,180.59,180.56,1e-08]
[1761855183085,20.592,180.6,180.56,1e-08]
[1761855183285,25.94184871,180.64,180.57,0.71]
[1761855183586,20.592,180.65,180.57,0.71]
[1761855183915,20.592,180.65,180.58,19.38199135]
[1761855184088,4.62984871,180.7,180.58,19.38199135]
[1761855184413,20.592,180.68,180.59,0.71]
[1761855185018,20.592,180.66,180.59,0.71]
[1761855185186,20.592,180.64,180.59,0.71]
[1761855185715,0.72,180.64,180.56,0.71000001]
[1761855185926,5.53617892,180.63,180.56,0.71000001]
[1761855186126,39.96862624,180.63,180.56,0.71000001]
[1761855186302,20.592,180.63,180.56,0.71000001]
[1761855186503,20.592,180.63,180.56,6.2482059]
[1761855186931,20.592,180.63,180.57,0.71]
[1761855187130,5.53571022,180.65,180.57,0.71]
[1761855187502,20.592,180.66,180.57,0.71]
[1761855187701,21.312,180.66,180.57,0.71]
[1761855187905,26.84726165,180.66,180.57,0.71]
[1761855188127,26.12726165,180.66,180.58,5.53771181]
[1761855188311,30.75711036,180.66,180.58,5.53771181]
[1761855188508,26.12726165,180.66,180.59,0.71]
[1761855188803,20.592,180.67,180.59,0.71]
[1761855189704,20.592,180.65,180.59,0.71]
[1761855190315,5.53587245,180.64,180.59,0.71]
[1761855190626,20.592,180.65,180.59,6.24725439]
[1761855191628,20.592,180.65,180.59,0.71]
[1761855192034,20.592,180.65,180.59,6.24740023]
[1761855192407,5.53587245,180.64,180.59,6.24740023]
[1761855192808,20.592,180.65,180.59,6.24740023]
[1761855193309,0.69,180.64,180.56,1e-08]
[1761855193531,20.592,180.62,180.56,1e-08]
[1761855193723,20.592,180.62,180.56,5.53827909]
[1761855194318,34.43091502,180.65,180.58,5.53771181]
[1761855194716,34.43091502,180.65,180.58,6.25771181]
[1761855195240,0.69,180.64,180.57,5.53796701]
[1761855195537,0.69,180.64,180.56,0.72000001]
[1761855196113,20.592,180.65,180.56,6.25831031]
[1761855196322,5.53587245,180.64,180.56,6.25831031]
[1761855196526,0.69,180.63,180.56,6.25831031]
[1761855197814,0.69,180.63,180.56,5.53831031]
[1761855198445,5.53648543,180.62,180.56,1e-08]
[1761855198747,20.592,180.61,180.56,1e-08]
[1761855199041,19.37769902,180.62,180.56,1e-08]
[1761855199246,0.69,180.61,180.56,1e-08]
[1761855199445,20.592,180.59,180.56,1e-08]
[1761855200144,21.282,180.59,180.56,1e-08]
[1761855200553,6.22771181,180.58,180.56,1e-08]
[1761855202036,0.69,180.57,180.56,1e-08]
[1761855202465,9.5987684,180.57,180.56,1e-08]
[1761855203139,30.1907684,180.57,180.56,1e-08]
[1761855203563,28.29636449,180.57,180.56,1e-08]
[1761855203860,19.38759609,180.57,180.56,1e-08]
[1761855204060,24.23561458,180.57,180.56,1e-08]
[1761855204267,15.32684618,180.57,180.56,1e-08]
[1761855204468,24.92561458,180.57,180.56,1e-08]
[1761855204961,29.55546329,180.57,180.56,1e-08]
[1761855205166,24.92561458,180.57,180.56,1e-08]
[1761855205668,45.51761458,180.57,180.56,1e-08]
[1761855205874,24.92561458,180.57,180.56,1e-08]
[1761855207262,29.55546329,180.57,180.56,1e-08]
[1761855207462,24.92561458,180.57,180.56,1e-08]
[1761855207664,33.83438298,180.57,180.56,1e-08]
[1761855208173,24.92561458,180.57,180.56,1e-08]
[1761855208668,29.56094503,180.57,180.56,1e-08]
[1761855209568,20.592,180.54,180.47,0.2]
[1761855209881,14.44954854,180.48,180.47,0.2]
[1761855210162,20.592,180.45,180.38,7.61098999]
[1761855210357,8.9087684,180.41,180.39,0.72]
[1761855210741,8.9087684,180.4,180.38,6.89098999]
[1761855210960,8.9087684,180.39,180.38,6.89098999]
[1761855211276,8.9087684,180.4,180.38,6.89098999]
[1761855211447,8.9087684,180.39,180.38,6.89098999]
[1761855211853,8.9087684,180.4,180.38,7.61098999]
[1761855212846,8.9087684,180.4,180.39,0.72]
[1761855213068,8.9087684,180.4,180.38,6.89098999]
[1761855213364,8.9087684,180.4,180.38,7.61098999]
[1761855213965,8.9087684,180.39,180.38,6.89098999]
[1761855214168,29.5007684,180.39,180.38,6.89098999]
[1761855214340,20.592,180.39,180.38,6.89098999]
[1761855214544,29.5007684,180.39,180.38,6.89098999]
[1761855215837,35.04431294,180.39,180.38,6.89098999]
[1761855219761,35.73431294,180.39,180.38,6.89098999]
[1761855220786,35.04431294,180.39,180.38,6.89098999]
[1761855220963,20.592,180.41,180.38,7.55098999]
[1761855221284,13.85505931,180.44,180.38,6.89098999]
[1761855221285,8.9087684,180.4,180.38,6.89098999]
[1761855222185,14.45210858,180.4,180.38,7.55098999]
[1761855222687,8.9087684,180.4,180.38,7.55098999]
[1761855223051,8.9087684,180.39,180.38,6.89098999]
[1761855223255,19.39759609,180.39,180.38,6.89098999]
[1761855223694,18.69759609,180.39,180.38,6.89098999]
[1761855223897,19.39759609,180.39,180.38,6.89098999]
[1761855224094,45.53314063,180.39,180.38,6.89098999]
[1761855224402,35.04431294,180.39,180.38,6.89098999]
[1761855225992,26.13554454,180.39,180.38,6.89098999]
[1761855226307,35.04431294,180.39,180.38,6.89098999]
[1761855227681,35.74431294,180.39,180.38,6.89098999]
[1761855228097,35.04431294,180.39,180.38,6.89098999]
[1761855229881,45.53314063,180.39,180.38,6.89098999]
[1761855231308,40.22984299,180.39,180.38,6.89098999]
[1761855231508,19.63784299,180.39,180.38,6.89098999]
[1761855232393,9.1490153,180.39,180.38,6.89098999]
[1761855232588,3.60547076,180.39,180.38,6.89098999]
[1761855234082,5.54262276,180.42,180.38,7.55098999]
[1761855234281,3.60547076,180.41,180.39,0.66]
[1761855234682,20.592,180.4,180.39,0.66]
[1761855235383,20.592,180.4,180.38,6.89098999]
[1761855235710,3.60547076,180.41,180.38,7.55098999]
[1761855235897,20.592,180.42,180.38,6.89098999]
[1761855236096,9.14823888,180.42,180.39,0.66]
[1761855236610,20.592,180.41,180.39,0.66]
[1761855236994,9.1481527,180.42,180.39,0.66]
[1761855237196,5.54268194,180.42,180.39,0.66]
[1761855237394,3.60547076,180.41,180.39,0.66]
[1761855238213,5.54300922,180.41,180.39,0.66]
[1761855238412,20.592,180.43,180.39,0.66]
[1761855238714,24.19747076,180.43,180.39,0.66]
[1761855239399,29.7400118,180.43,180.39,0.66]
[1761855240487,3.60547076,180.41,180.38,6.89098999]
[1761855240692,3.60547076,180.4,180.38,6.89098999]
[1761855240897,39.99032998,180.43,180.39,0.66]
[1761855241202,3.60547076,180.41,180.39,0.66]
[1761855242415,9.14840379,180.41,180.39,0.66]
[1761855242798,9.78882769,180.46,180.4,3.60547076]
[1761855243022,20.592,180.43,180.39,4.26547076]
[1761855243231,5.54047315,180.49,180.4,3.60547076]
[1761855243512,3.60547076,180.47,180.41,4.26547076]
[1761855243686,3.60547076,180.46,180.41,4.26547076]
[1761855243892,3.60547076,180.46,180.42,0.66]
[1761855244311,24.19747076,180.45,180.42,0.66]
[1761855244518,3.60547076,180.44,180.42,0.66]
[1761855245217,24.19747076,180.45,180.42,0.66]
[1761855246315,9.14747918,180.44,180.38,6.89098999]
[1761855246529,3.60547076,180.4,180.38,6.89098999]
[1761855246693,3.60547076,180.39,180.38,6.89098999]
[1761855246892,24.19747076,180.41,180.38,6.89098999]
[1761855247408,19.39702947,180.44,180.39,0.66]
[1761855247409,2.30591842,180.42,180.39,0.66]
[1761855247593,22.89791842,180.43,180.39,0.66]
[1761855248119,2.30591842,180.41,180.39,0.66]
[1761855248299,7.84899962,180.41,180.39,0.66]
[1761855248708,5.5430812,180.41,180.39,0.66]
[1761855248902,28.44060791,180.42,180.39,0.66]
[1761855249332,2.30591842,180.41,180.39,0.66]
[1761855250321,7.84891076,180.41,180.39,0.66]
[1761855251612,2.30591842,180.4,180.38,6.89098999]
[1761855251800,5.54299234,180.41,180.38,6.89098999]
[1761855251801,23.57791842,180.39,180.38,6.89098999]
[1761855252131,28.16747166,180.39,180.38,6.89098999]
[1761855252291,23.57791842,180.39,180.38,6.89098999]
[1761855252630,38.91029065,180.39,180.38,6.89098999]
[1761855253126,26.81554454,180.39,180.38,6.89098999]
[1761855253329,33.75817092,180.39,180.38,6.89098999]
[1761855253504,38.91029065,180.39,180.38,6.89098999]
[1761855255032,20.592,180.35,180.27,0.7]
[1761855255239,2.30591842,180.29,180.24,7.85407643]
[1761855255396,2.30591842,180.31,180.28,0.7]
[1761855255599,2.30591842,180.32,180.28,0.7]
[1761855255798,2.30591842,180.31,180.28,0.7]
[1761855256530,20.592,180.33,180.28,0.7]
[1761855256531,7.85242251,180.3,180.28,0.7]
[1761855256914,35.14613883,180.33,180.28,0.7]
[1761855256915,20.592,180.33,180.28,0.7]
[1761855257233,20.592,180.33,180.28,6.24682632]
[1761855257645,2.30591842,180.32,180.29,0.66]
[1761855258607,7.85165586,180.32,180.29,0.66]
[1761855261140,2.30591842,180.31,180.29,0.66]
[1761855261513,5.54573744,180.32,180.26,0.66]
[1761855261514,2.30591842,180.3,180.26,0.66]
[1761855261716,2.30591842,180.28,180.26,0.66]
[1761855262229,20.592,180.29,180.26,0.66]
[1761855262230,2.30591842,180.27,180.26,0.66]
[1761855262405,26.13887491,180.29,180.26,0.66]
[1761855262406,2.30591842,180.28,180.26,0.66]
[1761855262841,2.30591842,180.27,180.23,0.66]
[1761855263044,2.30591842,180.26,180.23,0.66]
[1761855263209,2.30591842,180.27,180.23,0.66]
[1761855263835,26.13887491,180.29,180.23,0.66]
[1761855263836,2.30591842,180.25,180.23,0.66]
[1761855264226,2.30591842,180.24,180.21,0.66]
[1761855264523,2.30591842,180.22,180.2,0.86]
[1761855264921,2.30591842,180.22,180.21,0.66]
[1761855265120,2.30591842,180.22,180.2,0.86]
[1761855265343,2.30591842,180.21,180.2,0.2]
[1761855266116,2.99591842,180.21,180.2,0.2]
[1761855266344,38.92582773,180.21,180.2,0.2]
[1761855267920,0.69,180.23,180.2,0.2]
[1761855268126,2.30591842,180.22,180.2,0.2]
[1761855268363,2.30591842,180.22,180.2,0.86]
[1761855268533,22.89791842,180.21,180.2,0.2]
[1761855269446,20.592,180.21,180.2,0.2]
[1761855269648,22.89791842,180.21,180.2,0.2]
[1761855270351,29.13700004,180.21,180.2,0.2]
[1761855270941,28.44700004,180.21,180.2,0.2]
[1761855271530,29.13700004,180.21,180.2,0.2]
[1761855271934,28.44700004,180.21,180.2,0.2]
[1761855272363,22.89791842,180.21,180.2,0.2]
[1761855272888,2.30591842,180.22,180.2,0.86]
[1761855273255,22.89791842,180.23,180.21,0.66]
[1761855273455,20.592,180.22,180.21,0.66]
[1761855273676,22.89791842,180.22,180.2,0.2]
[1761855273883,20.592,180.22,180.2,0.86]
[1761855274051,20.592,180.22,180.2,0.2]
[1761855274252,20.592,180.22,180.21,0.66]
[1761855276379,2.30591842,180.23,180.21,0.66]
[1761855277384,5.88323718,180.23,180.21,0.66]
[1761855277561,5.88323718,180.24,180.21,0.66]
[1761855277764,5.5469497,180.28,180.21,6.54323718]
[1761855277954,5.88323718,180.26,180.21,12.09209173]
[1761855278159,9.78882769,180.32,180.23,5.88323718]
[1761855278358,5.88323718,180.29,180.24,0.66]
[1761855278562,26.47523718,180.29,180.24,6.54323718]
[1761855279084,5.88323718,180.29,180.25,0.66]
[1761855279382,5.88323718,180.3,180.25,0.66]
[1761855279555,26.47523718,180.3,180.25,0.66]
[1761855279854,5.88323718,180.29,180.25,0.66]
[1761855280056,5.88323718,180.27,180.25,0.66]
[1761855280257,5.88323718,180.28,180.25,0.66]
[1761855280475,5.88323718,180.29,180.25,0.66]
[1761855281379,5.85395784,180.29,180.25,0.66]
[1761855282682,5.85395784,180.29,180.25,6.20777279]
[1761855283068,20.592,180.3,180.26,0.67]
[1761855283263,5.88323718,180.31,180.26,6.55323718]
[1761855283465,5.88323718,180.35,180.3,5.88323718]
[1761855283678,5.88323718,180.34,180.29,5.54638892]
[1761855283879,5.88323718,180.33,180.28,5.88323718]
[1761855284185,5.88323718,180.33,180.29,0.67]
[1761855284484,5.88323718,180.34,180.29,0.67]
[1761855284688,32.02005078,180.35,180.29,6.55323718]
[1761855284868,32.02005078,180.35,180.3,5.88323718]
[1761855285069,32.02005078,180.35,180.3,6.55323718]
[1761855285266,26.1368136,180.35,180.31,0.67]
[1761855285466,32.02005078,180.35,180.31,0.67]
[1761855285877,5.88323718,180.33,180.29,0.67]
[1761855286063,5.88323718,180.33,180.3,0.67]
[1761855286383,26.1368136,180.35,180.3,0.67]
[1761855286384,5.88323718,180.35,180.3,0.67]
[1761855286585,5.88323718,180.35,180.3,6.55323718]
[1761855286762,9.78882769,180.41,180.33,5.88323718]
[1761855286958,5.88323718,180.38,180.33,5.88323718]
[1761855287163,5.88323718,180.38,180.34,0.67]
[1761855287465,5.88323718,180.37,180.34,0.67]
[1761855287990,11.42752625,180.37,180.34,0.67]
[1761855288164,5.88323718,180.36,180.34,0.67]
[1761855288565,5.88323718,180.37,180.34,0.67]
[1761855288765,20.592,180.36,180.34,0.67]
[1761855289373,5.88323718,180.38,180.34,0.67]
[1761855289374,5.88323718,180.38,180.34,6.2149472]
[1761855289581,5.88323718,180.38,180.35,0.67]
[1761855290592,20.592,180.39,180.35,12.09796837]
[1761855290778,0.67,180.44,180.35,25.95990349]
[1761855291124,5.88323718,180.41,180.36,0.67]
[1761855291394,5.88323718,180.39,180.36,0.67]
[1761855291583,5.88323718,180.38,180.36,0.67]
[1761855292165,20.592,180.41,180.36,6.21436679]
[1761855292367,23.6423297,180.46,180.37,5.88323718]
[1761855292368,4.59468797,180.46,180.37,5.88323718]
[1761855292676,5.88323718,180.42,180.37,6.55323718]
[1761855292880,5.88323718,180.42,180.38,0.67]
[1761855293079,20.06501111,180.46,180.38,0.67]
[1761855293080,5.54152558,180.46,180.38,6.55323718]
[1761855293303,5.88323718,180.43,180.38,6.55323718]
[1761855293612,5.88323718,180.42,180.39,0.67]
[1761855293773,5.88323718,180.41,180.37,0.67]
[1761855294098,5.88323718,180.41,180.38,0.67]
[1761855295395,5.88323718,180.43,180.38,6.55323718]
[1761855295602,5.88323718,180.43,180.39,0.67]
[1761855295791,5.88323718,180.41,180.39,0.67]
[1761855296122,5.88323718,180.42,180.39,0.67]
[1761855297303,2.30566444,180.42,180.39,0.67]
[1761855297890,2.30566444,180.43,180.39,6.21346125]
[1761855298207,2.30566444,180.42,180.39,0.67]
[1761855298402,2.30566444,180.42,180.4,0.67]
[1761855298704,2.30566444,180.42,180.39,61.7]
[1761855298890,2.30566444,180.41,180.39,62.37]
[1761855299093,2.30566444,180.42,180.4,0.67]
[1761855300291,2.30566444,180.41,180.4,0.67]
[1761855300493,20.592,180.44,180.4,0.67]
[1761855300798,2.30566444,180.44,180.4,6.21320885]
[1761855301001,4.36600409,180.51,180.4,20.07130197]
[1761855301002,5.54047401,180.49,180.4,20.07130197]
[1761855301192,2.30566444,180.41,180.4,16.66435217]
[1761855301596,20.592,180.42,180.4,0.67]
[1761855301911,2.30566444,180.41,180.36,0.67]
[1761855302119,2.30566444,180.37,180.33,0.67]
[1761855302289,2.30566444,180.34,180.33,17.33805567]
[1761855302509,2.30566444,180.34,180.33,16.66805567]
[1761855302725,20.592,180.37,180.33,16.66805567]
[1761855302924,2.30566444,180.34,180.33,16.66805567]
[1761855303131,20.592,180.37,180.3,2.30566444]
[1761855303303,2.30566444,180.32,180.3,16.66805567]
[1761855303719,2.30566444,180.35,180.31,0.67]
[1761855304225,2.30566444,180.34,180.31,0.67]
[1761855305226,2.30566444,180.32,180.29,0.67]
[1761855306018,2.30566444,180.33,180.29,0.67]
[1761855306621,2.30566444,180.32,180.29,0.67]
[1761855306822,2.30566444,180.33,180.29,6.21651835]
[1761855307024,22.89766444,180.36,180.3,2.30566444]
[1761855307239,5.26468797,180.44,180.35,2.30566444]
[1761855307437,3.60275885,180.42,180.37,3.60275885]
[1761855307635,3.60275885,180.44,180.38,3.60275885]
[1761855308030,3.60275885,180.44,180.39,0.67]
[1761855308227,9.14507442,180.43,180.39,0.67]
[1761855308417,3.60275885,180.42,180.39,0.67]
[1761855308644,24.19475885,180.45,180.39,4.27275885]
[1761855308930,3.60275885,180.45,180.39,9.81625257]
[1761855309130,24.19475885,180.45,180.4,0.67]
[1761855309331,24.19475885,180.44,180.4,0.67]
[1761855309823,20.592,180.44,180.4,0.67]
[1761855310027,0.67,180.43,180.37,0.67]
[1761855310211,0.67,180.43,180.35,3.60275885]
[1761855310535,3.60275885,180.4,180.37,0.67]
[1761855310757,3.60275885,180.39,180.34,4.27275885]
[1761855311106,3.60275885,180.4,180.35,4.27275885]
[1761855311515,3.60275885,180.4,180.36,0.67]
[1761855311810,5.54269639,180.42,180.36,0.67]
[1761855312010,21.312,180.44,180.36,4.27275885]
[1761855312231,3.60275885,180.4,180.36,0.67]
[1761855312535,3.60275885,180.38,180.32,0.67]
[1761855312704,3.60275885,180.38,180.32,9.81818657]
[1761855313110,3.60275885,180.38,180.33,4.27275885]
[1761855313533,3.60275885,180.4,180.35,3.60275885]
[1761855314046,20.592,180.42,180.36,4.27275885]
[1761855314212,20.592,180.42,180.38,5.54385186]
[1761855314418,20.592,180.42,180.38,9.14661071]
[1761855314618,20.592,180.42,180.39,0.67]
[1761855315327,29.51092272,180.44,180.39,0.67]
[1761855315648,13.85126174,180.49,180.41,8.91892272]
[1761855315946,8.91892272,180.46,180.42,0.66]
[1761855316165,5.5401662,180.5,180.42,0.66]
[1761855316317,8.91892272,180.46,180.42,6.20244393]
[1761855316517,8.91892272,180.46,180.42,0.66]
[1761855316719,8.91892272,180.46,180.43,0.66]
[1761855317531,8.91892272,180.44,180.36,9.78882769]
[1761855317768,8.91892272,180.4,180.37,0.66]
[1761855317931,20.592,180.43,180.37,0.66]
[1761855318266,14.46168307,180.42,180.37,9.57892272]
[1761855318442,20.592,180.43,180.37,6.20415498]